Workbook

Sheet Қаржылық есеп
B2: ЖЫЛДЫҚ ҚАРЖЫЛЫҚ ЕСЕП | K2: 2016 | N2: L2 ұяшығындағы есеп жылын таңдау
B3: КОМПАНИЯҢЫЗДЫҢ АТЫ | N3: Деректерді өңдеу үшін, Қаржылық деректер енгізу кестесін таңдаңыз
B5: НЕГІЗГІ МЕТРИКАЛАР | D5: Негізгі метрикалар есебін өзгерту үшін басу
B7: =Есептеулер!B8 -> ТҮСІМДЕР | D7: =Есептеулер!B9 -> ТАЗА ПАЙДА | F7: =Есептеулер!B10 -> МӨЛШЕРЛЕМЕ | H7: =Есептеулер!B11 -> АМОРТИЗАЦИЯ | J7: =Есептеулер!B12 -> ОПЕРАЦИЯЛЫҚ ТАБЫС
B8: =IFERROR(Есептеулер!G8,"") -> ₸18,058,388 | D8: =IFERROR(Есептеулер!G9,"") -> ₸6,747,485 | F8: =IFERROR(Есептеулер!G10,"") -> ₸378,947 | H8: =IFERROR(Есептеулер!G11,"") -> ₸554,688 | J8: =IFERROR(Есептеулер!G12,"") -> ₸7,342,599
B9: =Есептеулер!H8 -> 0% | D9: =Есептеулер!H9 -> 2% | F9: =Есептеулер!H10 -> 14% | H9: =Есептеулер!H11 -> 9% | J9: =Есептеулер!H12 -> -5%
B13: БАРЛЫҚ МЕТРИКАЛАР | D13: Төмендегі ақпаратты өзгертпеңіз. Қаржы деректерін енгізу үшін басу
B15: МЕТРИКА | D15: ="ЕСЕП ЖЫЛЫ ("&Таңдалған_жыл&")" -> ЕСЕП ЖЫЛЫ (2016) | F15: ="АЛДЫҢҒЫ ЖЫЛ ("&Таңдалған_жыл-1&")" -> АЛДЫҢҒЫ ЖЫЛ (2015) | H15: % ӨЗГЕРІС | I15: =CONCATENATE(Жылдар," ЖЫЛДЫҚ ТРЕНД") -> 5 ЖЫЛДЫҚ ТРЕНД
B16: =Есептеулер!B15 -> ТҮСІМДЕР | D16: =IF($B16="","",Есептеулер!G15) -> ₸18,058,388.00 | F16: =IF($B16="","",Есептеулер!F15) -> ₸18,002,663.00 | H16: =IFERROR(D16/F16-1,"") -> 0%
B17: =Есептеулер!B16 -> ОПЕРАЦИЯЛЫҚ ШЫҒЫНДАР | D17: =IF($B17="","",Есептеулер!G16) -> ₸9,441,945.00 | F17: =IF($B17="","",Есептеулер!F16) -> ₸8,088,333.00 | H17: 17%
B18: =Есептеулер!B17 -> ОПЕРАЦИЯЛЫҚ ТАБЫС | D18: =IF($B18="","",Есептеулер!G17) -> ₸7,342,599.00 | F18: =IF($B18="","",Есептеулер!F17) -> ₸7,731,783.00 | H18: -5%
B19: =Есептеулер!B18 -> АМОРТИЗАЦИЯ | D19: =IF($B19="","",Есептеулер!G18) -> ₸554,688.00 | F19: =IF($B19="","",Есептеулер!F18) -> ₸506,842.00 | H19: 9%
B20: =Есептеулер!B19 -> МӨЛШЕРЛЕМЕ | D20: =IF($B20="","",Есептеулер!G19) -> ₸378,947.00 | F20: =IF($B20="","",Есептеулер!F19) -> ₸333,830.00 | H20: 14%
B21: =Есептеулер!B20 -> ТАЗА ПАЙДА | D21: =IF($B21="","",Есептеулер!G20) -> ₸6,747,485.00 | F21: =IF($B21="","",Есептеулер!F20) -> ₸6,627,210.00 | H21: 2%
B22: =Есептеулер!B21 -> САЛЫҚ | D22: =IF($B22="","",Есептеулер!G21) -> ₸3,140,825.00 | F22: =IF($B22="","",Есептеулер!F21) -> ₸2,942,453.00 | H22: 7%
B23: =Есептеулер!B22 -> САЛЫҚТЫ ТӨЛЕГЕННЕН КЕЙІНГІ ТАБЫС | D23: =IF($B23="","",Есептеулер!G22) -> ₸5,024,768.00 | F23: =IF($B23="","",Есептеулер!F22) -> ₸4,243,820.00 | H23: 18%
B24: =Есептеулер!B23 -> МЕТРИКА 1 | D24: =IF($B24="","",Есептеулер!G23) -> ₸1,996.00 | F24: =IF($B24="","",Есептеулер!F23) -> ₸1,678.00 | H24: 19%
B25: =Есептеулер!B24 -> МЕТРИКА 2 | D25: =IF($B25="","",Есептеулер!G24) -> ₸2,601.00 | F25: =IF($B25="","",Есептеулер!F24) -> ₸2,184.00 | H25: 19%
B26: =Есептеулер!B25 -> МЕТРИКА 3 | D26: =IF($B26="","",Есептеулер!G25) -> ₸3,108.00 | F26: =IF($B26="","",Есептеулер!F25) -> ₸2,639.00 | H26: 18%
B27: =Есептеулер!B26 -> МЕТРИКА 4 | D27: =IF($B27="","",Есептеулер!G26) -> ₸1,492.00 | F27: =IF($B27="","",Есептеулер!F26) -> ₸1,459.00 | H27: 2%
B28: =Есептеулер!B27 -> МЕТРИКА 5 | D28: =IF($B28="","",Есептеулер!G27) -> ₸103.00 | F28: =IF($B28="","",Есептеулер!F27) -> ₸100.00 | H28: 3%
B29: =Есептеулер!B28 -> МЕТРИКА 6 | D29: =IF($B29="","",Есептеулер!G28) -> ₸34.00 | F29: =IF($B29="","",Есептеулер!F28) -> ₸30.00 | H29: 13%
B30: =Есептеулер!B29 ->  | D30: =IF($B30="","",Есептеулер!G29) ->  | F30: =IF($B30="","",Есептеулер!F29) -> 
B31: =Есептеулер!B30 ->  | D31: =IF($B31="","",Есептеулер!G30) ->  | F31: =IF($B31="","",Есептеулер!F30) -> 
B32: =Есептеулер!B31 ->  | D32: =IF($B32="","",Есептеулер!G31) ->  | F32: =IF($B32="","",Есептеулер!F31) -> 
B33: =Есептеулер!B32 ->  | D33: =IF($B33="","",Есептеулер!G32) ->  | F33: =IF($B33="","",Есептеулер!F32) -> 
B34: =Есептеулер!B33 ->  | D34: =IF($B34="","",Есептеулер!G33) ->  | F34: =IF($B34="","",Есептеулер!F33) -> 
B35: =Есептеулер!B34 ->  | D35: =IF($B35="","",Есептеулер!G34) ->  | F35: =IF($B35="","",Есептеулер!F34) -> 
B36: =Есептеулер!B35 ->  | D36: =IF($B36="","",Есептеулер!G35) ->  | F36: =IF($B36="","",Есептеулер!F35) -> 
B37: =Есептеулер!B36 ->  | D37: =IF($B37="","",Есептеулер!G36) ->  | F37: =IF($B37="","",Есептеулер!F36) -> 
B38: =Есептеулер!B37 ->  | D38: =IF($B38="","",Есептеулер!G37) ->  | F38: =IF($B38="","",Есептеулер!F37) -> 
B39: =Есептеулер!B38 ->  | D39: =IF($B39="","",Есептеулер!G38) ->  | F39: =IF($B39="","",Есептеулер!F38) -> 
B40: =Есептеулер!B39 ->  | D40: =IF($B40="","",Есептеулер!G39) ->  | F40: =IF($B40="","",Есептеулер!F39) -> 

Sheet Қаржылық деректерді енгізу
B2: ҚАРЖЫ ДЕРЕКТЕРІҢІЗДІ ЕНГІЗІҢІЗ
B3: 7 ЖЫЛ ҮШІН ЕҢ КӨБІ 25 НЕГІЗГІ МЕТРИКАНЫ АЙҚЫНДАУҒА БОЛАДЫ
B4: Қаржылық есепті қарау үшін басу
B5: МЕТРИКА АТЫ | C5: 2010 | D5: 2011 | E5: 2012 | F5: 2013 | G5: 2014 | H5: 2015 | I5: 2016
B6: ТҮСІМДЕР | C6: ₸12,500,000.00 | D6: ₸13,413,745.00 | E6: ₸14,272,838.00 | F6: ₸15,068,746.00 | G6: ₸16,504,456.00 | H6: ₸18,002,663.00 | I6: ₸18,058,388.00
B7: ОПЕРАЦИЯЛЫҚ ШЫҒЫНДАР | C7: ₸6,500,000.00 | D7: ₸7,096,231.00 | E7: ₸7,592,486.00 | F7: ₸7,890,127.00 | G7: ₸8,167,437.00 | H7: ₸8,088,333.00 | I7: ₸9,441,945.00
B8: ОПЕРАЦИЯЛЫҚ ТАБЫС | C8: ₸6,000,000.00 | D8: ₸6,420,730.00 | E8: ₸6,885,769.00 | F8: ₸7,564,325.00 | G8: ₸7,675,526.00 | H8: ₸7,731,783.00 | I8: ₸7,342,599.00
B9: АМОРТИЗАЦИЯ | C9: ₸450,000.00 | D9: ₸451,777.00 | E9: ₸465,692.00 | F9: ₸497,421.00 | G9: ₸502,411.00 | H9: ₸506,842.00 | I9: ₸554,688.00
B10: МӨЛШЕРЛЕМЕ | C10: ₸250,000.00 | D10: ₸274,582.00 | E10: ₸289,311.00 | F10: ₸313,612.00 | G10: ₸314,853.00 | H10: ₸333,830.00 | I10: ₸378,947.00
B11: ТАЗА ПАЙДА | C11: ₸5,400,000.00 | D11: ₸5,476,107.50 | E11: ₸5,586,081.00 | F11: ₸5,974,795.00 | G11: ₸6,148,359.00 | H11: ₸6,627,210.00 | I11: ₸6,747,485.00
B12: САЛЫҚ | C12: ₸2,200,000.00 | D12: ₸2,392,054.00 | E12: ₸2,557,674.00 | F12: ₸2,749,886.00 | G12: ₸2,833,567.00 | H12: ₸2,942,453.00 | I12: ₸3,140,825.00
B13: САЛЫҚТЫ ТӨЛЕГЕННЕН КЕЙІНГІ ТАБЫС | C13: ₸3,200,000.00 | D13: ₸3,494,349.00 | E13: ₸3,841,853.00 | F13: ₸3,989,505.00 | G13: ₸4,060,773.00 | H13: ₸4,243,820.00 | I13: ₸5,024,768.00
B14: МЕТРИКА 1 | C14: ₸1,280.00 | D14: ₸1,281.00 | E14: ₸1,378.00 | F14: ₸1,429.00 | G14: ₸1,557.00 | H14: ₸1,678.00 | I14: ₸1,996.00
B15: МЕТРИКА 2 | C15: ₸1,820.00 | D15: ₸1,859.00 | E15: ₸1,922.00 | F15: ₸2,017.00 | G15: ₸2,048.00 | H15: ₸2,184.00 | I15: ₸2,601.00
B16: МЕТРИКА 3 | C16: ₸1,910.00 | D16: ₸2,055.00 | E16: ₸2,187.00 | F16: ₸2,319.00 | G16: ₸2,467.00 | H16: ₸2,639.00 | I16: ₸3,108.00
B17: МЕТРИКА 4 | C17: ₸1,210.00 | D17: ₸1,221.00 | E17: ₸1,259.00 | F17: ₸1,370.00 | G17: ₸1,376.00 | H17: ₸1,459.00 | I17: ₸1,492.00
B18: МЕТРИКА 5 | C18: ₸75.00 | D18: ₸79.00 | E18: ₸85.00 | F18: ₸89.00 | G18: ₸91.00 | H18: ₸100.00 | I18: ₸103.00
B19: МЕТРИКА 6 | C19: ₸23.00 | D19: ₸25.00 | E19: ₸27.00 | F19: ₸28.00 | G19: ₸29.00 | H19: ₸30.00 | I19: ₸34.00

Sheet Негізгі метрика параметрлері
B2: ОСЫ ЖЕРДЕГІ НЕГІЗГІ МЕТРИКАЛАРДЫ АЙҚЫНДАУ
B3: ЕСЕПТІҢ БАС ЖАҒЫНДА КӨРСЕТІЛЕТІН ЕҢ КӨБІ 5 НЕГІЗГІ МЕТРИКАНЫ ТАҢДАУ
B4: Қаржылық есепті қарау үшін басу
B5: 1 | C5: ТҮСІМДЕР | E5: =IF(ISBLANK(C5),"← Ашылмалы мәзірден мәнді таңдаңыз",IF(COUNTIF($C$5:C5,C5)>1,""&C5&" мәні бірнеше рет таңдалды.","")) -> 
B6: 2 | C6: ТАЗА ПАЙДА | E6: =IF(ISBLANK(C6),"← Ашылмалы мәзірден мәнді таңдаңыз",IF(COUNTIF($C$5:C6,C6)>1,""&C6&" мәні бірнеше рет таңдалды.","")) -> 
B7: 3 | C7: МӨЛШЕРЛЕМЕ | E7: =IF(ISBLANK(C7),"← Ашылмалы мәзірден мәнді таңдаңыз",IF(COUNTIF($C$5:C7,C7)>1,""&C7&" мәні бірнеше рет таңдалды.","")) -> 
B8: 4 | C8: АМОРТИЗАЦИЯ | E8: =IF(ISBLANK(C8),"← Ашылмалы мәзірден мәнді таңдаңыз",IF(COUNTIF($C$5:C8,C8)>1,""&C8&" мәні бірнеше рет таңдалды.","")) -> 
B9: 5 | C9: ОПЕРАЦИЯЛЫҚ ТАБЫС | E9: =IF(ISBLANK(C9),"← Ашылмалы мәзірден мәнді таңдаңыз",IF(COUNTIF($C$5:C9,C9)>1,""&C9&" мәні бірнеше рет таңдалды.","")) -> 

Sheet Есептеулер (hidden)
A1: Бұл жұмыс парағы қаржылық есеп есептеулері үшін пайдаланылады және жасырын түрде қалуы керек.
D2: Позиция
B3: Осы жыл | C3: =Таңдалған_жыл -> 2016 | D3: =MATCH(C3,lstЖылдар,0)+1 -> 8
B4: Алдыңғы жыл | C4: =C3-1 -> 2015 | D4: =MATCH(C4,lstЖылдар,0)+1 -> 7
B6: Позиция | C6: =MATCH(C7,lstЖылдар,0)+1 -> 4 | D6: =MATCH(D7,lstЖылдар,0)+1 -> 5 | E6: =MATCH(E7,lstЖылдар,0)+1 -> 6 | F6: =MATCH(F7,lstЖылдар,0)+1 -> 7 | G6: =MATCH(G7,lstЖылдар,0)+1 -> 8 | I6: =COUNT(C6:G6) -> 5
B7: Негізгі метрикалар | C7: =D7-1 -> 2012 | D7: =E7-1 -> 2013 | E7: =F7-1 -> 2014 | F7: =G7-1 -> 2015 | G7: =C3 -> 2016
A8: =MATCH(B8,'Қаржылық деректерді енгізу'!$B$6:$B$30,0) -> 1 | B8: =IF('Негізгі метрика параметрлері'!C5="","",'Негізгі метрика параметрлері'!C5) -> ТҮСІМДЕР | C8: =IFERROR(INDEX('Қаржылық деректерді енгізу'!$B$6:$I$30,$A8,C$6),NA()) -> 14272838 | D8: =IFERROR(INDEX('Қаржылық деректерді енгізу'!$B$6:$I$30,$A8,D$6),NA()) -> 15068746 | E8: =IFERROR(INDEX('Қаржылық деректерді енгізу'!$B$6:$I$30,$A8,E$6),NA()) -> 16504456 | F8: =IFERROR(INDEX('Қаржылық деректерді енгізу'!$B$6:$I$30,$A8,F$6),NA()) -> 18002663 | G8: =IFERROR(INDEX('Қаржылық деректерді енгізу'!$B$6:$I$30,$A8,G$6),NA()) -> 18058388 | H8: =IFERROR(G8/F8-1,"") -> 0%
A9: =MATCH(B9,'Қаржылық деректерді енгізу'!$B$6:$B$30,0) -> 6 | B9: =IF('Негізгі метрика параметрлері'!C6="","",'Негізгі метрика параметрлері'!C6) -> ТАЗА ПАЙДА | C9: =IFERROR(INDEX('Қаржылық деректерді енгізу'!$B$6:$I$30,$A9,C$6),NA()) -> 5586081 | D9: =IFERROR(INDEX('Қаржылық деректерді енгізу'!$B$6:$I$30,$A9,D$6),NA()) -> 5974795 | E9: =IFERROR(INDEX('Қаржылық деректерді енгізу'!$B$6:$I$30,$A9,E$6),NA()) -> 6148359 | F9: =IFERROR(INDEX('Қаржылық деректерді енгізу'!$B$6:$I$30,$A9,F$6),NA()) -> 6627210 | G9: =IFERROR(INDEX('Қаржылық деректерді енгізу'!$B$6:$I$30,$A9,G$6),NA()) -> 6747485 | H9: =IFERROR(G9/F9-1,"") -> 2%
A10: =MATCH(B10,'Қаржылық деректерді енгізу'!$B$6:$B$30,0) -> 5 | B10: =IF('Негізгі метрика параметрлері'!C7="","",'Негізгі метрика параметрлері'!C7) -> МӨЛШЕРЛЕМЕ | C10: =IFERROR(INDEX('Қаржылық деректерді енгізу'!$B$6:$I$30,$A10,C$6),NA()) -> 289311 | D10: =IFERROR(INDEX('Қаржылық деректерді енгізу'!$B$6:$I$30,$A10,D$6),NA()) -> 313612 | E10: =IFERROR(INDEX('Қаржылық деректерді енгізу'!$B$6:$I$30,$A10,E$6),NA()) -> 314853 | F10: =IFERROR(INDEX('Қаржылық деректерді енгізу'!$B$6:$I$30,$A10,F$6),NA()) -> 333830 | G10: =IFERROR(INDEX('Қаржылық деректерді енгізу'!$B$6:$I$30,$A10,G$6),NA()) -> 378947 | H10: 14%
A11: =MATCH(B11,'Қаржылық деректерді енгізу'!$B$6:$B$30,0) -> 4 | B11: =IF('Негізгі метрика параметрлері'!C8="","",'Негізгі метрика параметрлері'!C8) -> АМОРТИЗАЦИЯ | C11: =IFERROR(INDEX('Қаржылық деректерді енгізу'!$B$6:$I$30,$A11,C$6),NA()) -> 465692 | D11: =IFERROR(INDEX('Қаржылық деректерді енгізу'!$B$6:$I$30,$A11,D$6),NA()) -> 497421 | E11: =IFERROR(INDEX('Қаржылық деректерді енгізу'!$B$6:$I$30,$A11,E$6),NA()) -> 502411 | F11: =IFERROR(INDEX('Қаржылық деректерді енгізу'!$B$6:$I$30,$A11,F$6),NA()) -> 506842 | G11: =IFERROR(INDEX('Қаржылық деректерді енгізу'!$B$6:$I$30,$A11,G$6),NA()) -> 554688 | H11: 9%
A12: =MATCH(B12,'Қаржылық деректерді енгізу'!$B$6:$B$30,0) -> 3 | B12: =IF('Негізгі метрика параметрлері'!C9="","",'Негізгі метрика параметрлері'!C9) -> ОПЕРАЦИЯЛЫҚ ТАБЫС | C12: =IFERROR(INDEX('Қаржылық деректерді енгізу'!$B$6:$I$30,$A12,C$6),NA()) -> 6885769 | D12: =IFERROR(INDEX('Қаржылық деректерді енгізу'!$B$6:$I$30,$A12,D$6),NA()) -> 7564325 | E12: =IFERROR(INDEX('Қаржылық деректерді енгізу'!$B$6:$I$30,$A12,E$6),NA()) -> 7675526 | F12: =IFERROR(INDEX('Қаржылық деректерді енгізу'!$B$6:$I$30,$A12,F$6),NA()) -> 7731783 | G12: =IFERROR(INDEX('Қаржылық деректерді енгізу'!$B$6:$I$30,$A12,G$6),NA()) -> 7342599 | H12: -5%
B14: Барлық метрикалар (ең көбі 25 метрика таңдауға болады)
A15: =ROWS($B$15:B15) -> 1 | B15: =IF('Қаржылық деректерді енгізу'!B6=0,"",'Қаржылық деректерді енгізу'!B6) -> ТҮСІМДЕР | C15: =IF($B15="",NA(),IFERROR(INDEX('Қаржылық деректерді енгізу'!$B$6:$I$30,$A15,C$6),NA())) -> 14272838 | D15: =IF($B15="",NA(),IFERROR(INDEX('Қаржылық деректерді енгізу'!$B$6:$I$30,$A15,D$6),NA())) -> 15068746 | E15: =IF($B15="",NA(),IFERROR(INDEX('Қаржылық деректерді енгізу'!$B$6:$I$30,$A15,E$6),NA())) -> 16504456 | F15: =IF($B15="",NA(),IFERROR(INDEX('Қаржылық деректерді енгізу'!$B$6:$I$30,$A15,F$6),NA())) -> 18002663 | G15: =IF($B15="",NA(),IFERROR(INDEX('Қаржылық деректерді енгізу'!$B$6:$I$30,$A15,G$6),NA())) -> 18058388
A16: =ROWS($B$15:B16) -> 2 | B16: =IF('Қаржылық деректерді енгізу'!B7=0,"",'Қаржылық деректерді енгізу'!B7) -> ОПЕРАЦИЯЛЫҚ ШЫҒЫНДАР | C16: =IF($B16="",NA(),IFERROR(INDEX('Қаржылық деректерді енгізу'!$B$6:$I$30,$A16,C$6),NA())) -> 7592486 | D16: =IF($B16="",NA(),IFERROR(INDEX('Қаржылық деректерді енгізу'!$B$6:$I$30,$A16,D$6),NA())) -> 7890127 | E16: =IF($B16="",NA(),IFERROR(INDEX('Қаржылық деректерді енгізу'!$B$6:$I$30,$A16,E$6),NA())) -> 8167437 | F16: =IF($B16="",NA(),IFERROR(INDEX('Қаржылық деректерді енгізу'!$B$6:$I$30,$A16,F$6),NA())) -> 8088333 | G16: =IF($B16="",NA(),IFERROR(INDEX('Қаржылық деректерді енгізу'!$B$6:$I$30,$A16,G$6),NA())) -> 9441945
A17: =ROWS($B$15:B17) -> 3 | B17: =IF('Қаржылық деректерді енгізу'!B8=0,"",'Қаржылық деректерді енгізу'!B8) -> ОПЕРАЦИЯЛЫҚ ТАБЫС | C17: =IF($B17="",NA(),IFERROR(INDEX('Қаржылық деректерді енгізу'!$B$6:$I$30,$A17,C$6),NA())) -> 6885769 | D17: =IF($B17="",NA(),IFERROR(INDEX('Қаржылық деректерді енгізу'!$B$6:$I$30,$A17,D$6),NA())) -> 7564325 | E17: =IF($B17="",NA(),IFERROR(INDEX('Қаржылық деректерді енгізу'!$B$6:$I$30,$A17,E$6),NA())) -> 7675526 | F17: =IF($B17="",NA(),IFERROR(INDEX('Қаржылық деректерді енгізу'!$B$6:$I$30,$A17,F$6),NA())) -> 7731783 | G17: =IF($B17="",NA(),IFERROR(INDEX('Қаржылық деректерді енгізу'!$B$6:$I$30,$A17,G$6),NA())) -> 7342599
A18: =ROWS($B$15:B18) -> 4 | B18: =IF('Қаржылық деректерді енгізу'!B9=0,"",'Қаржылық деректерді енгізу'!B9) -> АМОРТИЗАЦИЯ | C18: =IF($B18="",NA(),IFERROR(INDEX('Қаржылық деректерді енгізу'!$B$6:$I$30,$A18,C$6),NA())) -> 465692 | D18: =IF($B18="",NA(),IFERROR(INDEX('Қаржылық деректерді енгізу'!$B$6:$I$30,$A18,D$6),NA())) -> 497421 | E18: =IF($B18="",NA(),IFERROR(INDEX('Қаржылық деректерді енгізу'!$B$6:$I$30,$A18,E$6),NA())) -> 502411 | F18: =IF($B18="",NA(),IFERROR(INDEX('Қаржылық деректерді енгізу'!$B$6:$I$30,$A18,F$6),NA())) -> 506842 | G18: =IF($B18="",NA(),IFERROR(INDEX('Қаржылық деректерді енгізу'!$B$6:$I$30,$A18,G$6),NA())) -> 554688
A19: =ROWS($B$15:B19) -> 5 | B19: =IF('Қаржылық деректерді енгізу'!B10=0,"",'Қаржылық деректерді енгізу'!B10) -> МӨЛШЕРЛЕМЕ | C19: =IF($B19="",NA(),IFERROR(INDEX('Қаржылық деректерді енгізу'!$B$6:$I$30,$A19,C$6),NA())) -> 289311 | D19: =IF($B19="",NA(),IFERROR(INDEX('Қаржылық деректерді енгізу'!$B$6:$I$30,$A19,D$6),NA())) -> 313612 | E19: =IF($B19="",NA(),IFERROR(INDEX('Қаржылық деректерді енгізу'!$B$6:$I$30,$A19,E$6),NA())) -> 314853 | F19: =IF($B19="",NA(),IFERROR(INDEX('Қаржылық деректерді енгізу'!$B$6:$I$30,$A19,F$6),NA())) -> 333830 | G19: =IF($B19="",NA(),IFERROR(INDEX('Қаржылық деректерді енгізу'!$B$6:$I$30,$A19,G$6),NA())) -> 378947
A20: =ROWS($B$15:B20) -> 6 | B20: =IF('Қаржылық деректерді енгізу'!B11=0,"",'Қаржылық деректерді енгізу'!B11) -> ТАЗА ПАЙДА | C20: =IF($B20="",NA(),IFERROR(INDEX('Қаржылық деректерді енгізу'!$B$6:$I$30,$A20,C$6),NA())) -> 5586081 | D20: =IF($B20="",NA(),IFERROR(INDEX('Қаржылық деректерді енгізу'!$B$6:$I$30,$A20,D$6),NA())) -> 5974795 | E20: =IF($B20="",NA(),IFERROR(INDEX('Қаржылық деректерді енгізу'!$B$6:$I$30,$A20,E$6),NA())) -> 6148359 | F20: =IF($B20="",NA(),IFERROR(INDEX('Қаржылық деректерді енгізу'!$B$6:$I$30,$A20,F$6),NA())) -> 6627210 | G20: =IF($B20="",NA(),IFERROR(INDEX('Қаржылық деректерді енгізу'!$B$6:$I$30,$A20,G$6),NA())) -> 6747485
A21: =ROWS($B$15:B21) -> 7 | B21: =IF('Қаржылық деректерді енгізу'!B12=0,"",'Қаржылық деректерді енгізу'!B12) -> САЛЫҚ | C21: =IF($B21="",NA(),IFERROR(INDEX('Қаржылық деректерді енгізу'!$B$6:$I$30,$A21,C$6),NA())) -> 2557674 | D21: =IF($B21="",NA(),IFERROR(INDEX('Қаржылық деректерді енгізу'!$B$6:$I$30,$A21,D$6),NA())) -> 2749886 | E21: =IF($B21="",NA(),IFERROR(INDEX('Қаржылық деректерді енгізу'!$B$6:$I$30,$A21,E$6),NA())) -> 2833567 | F21: =IF($B21="",NA(),IFERROR(INDEX('Қаржылық деректерді енгізу'!$B$6:$I$30,$A21,F$6),NA())) -> 2942453 | G21: =IF($B21="",NA(),IFERROR(INDEX('Қаржылық деректерді енгізу'!$B$6:$I$30,$A21,G$6),NA())) -> 3140825
A22: =ROWS($B$15:B22) -> 8 | B22: =IF('Қаржылық деректерді енгізу'!B13=0,"",'Қаржылық деректерді енгізу'!B13) -> САЛЫҚТЫ ТӨЛЕГЕННЕН КЕЙІНГІ ТАБЫС | C22: =IF($B22="",NA(),IFERROR(INDEX('Қаржылық деректерді енгізу'!$B$6:$I$30,$A22,C$6),NA())) -> 3841853 | D22: =IF($B22="",NA(),IFERROR(INDEX('Қаржылық деректерді енгізу'!$B$6:$I$30,$A22,D$6),NA())) -> 3989505 | E22: =IF($B22="",NA(),IFERROR(INDEX('Қаржылық деректерді енгізу'!$B$6:$I$30,$A22,E$6),NA())) -> 4060773 | F22: =IF($B22="",NA(),IFERROR(INDEX('Қаржылық деректерді енгізу'!$B$6:$I$30,$A22,F$6),NA())) -> 4243820 | G22: =IF($B22="",NA(),IFERROR(INDEX('Қаржылық деректерді енгізу'!$B$6:$I$30,$A22,G$6),NA())) -> 5024768
A23: =ROWS($B$15:B23) -> 9 | B23: =IF('Қаржылық деректерді енгізу'!B14=0,"",'Қаржылық деректерді енгізу'!B14) -> МЕТРИКА 1 | C23: =IF($B23="",NA(),IFERROR(INDEX('Қаржылық деректерді енгізу'!$B$6:$I$30,$A23,C$6),NA())) -> 1378 | D23: =IF($B23="",NA(),IFERROR(INDEX('Қаржылық деректерді енгізу'!$B$6:$I$30,$A23,D$6),NA())) -> 1429 | E23: =IF($B23="",NA(),IFERROR(INDEX('Қаржылық деректерді енгізу'!$B$6:$I$30,$A23,E$6),NA())) -> 1557 | F23: =IF($B23="",NA(),IFERROR(INDEX('Қаржылық деректерді енгізу'!$B$6:$I$30,$A23,F$6),NA())) -> 1678 | G23: =IF($B23="",NA(),IFERROR(INDEX('Қаржылық деректерді енгізу'!$B$6:$I$30,$A23,G$6),NA())) -> 1996
A24: =ROWS($B$15:B24) -> 10 | B24: =IF('Қаржылық деректерді енгізу'!B15=0,"",'Қаржылық деректерді енгізу'!B15) -> МЕТРИКА 2 | C24: =IF($B24="",NA(),IFERROR(INDEX('Қаржылық деректерді енгізу'!$B$6:$I$30,$A24,C$6),NA())) -> 1922 | D24: =IF($B24="",NA(),IFERROR(INDEX('Қаржылық деректерді енгізу'!$B$6:$I$30,$A24,D$6),NA())) -> 2017 | E24: =IF($B24="",NA(),IFERROR(INDEX('Қаржылық деректерді енгізу'!$B$6:$I$30,$A24,E$6),NA())) -> 2048 | F24: =IF($B24="",NA(),IFERROR(INDEX('Қаржылық деректерді енгізу'!$B$6:$I$30,$A24,F$6),NA())) -> 2184 | G24: =IF($B24="",NA(),IFERROR(INDEX('Қаржылық деректерді енгізу'!$B$6:$I$30,$A24,G$6),NA())) -> 2601
A25: =ROWS($B$15:B25) -> 11 | B25: =IF('Қаржылық деректерді енгізу'!B16=0,"",'Қаржылық деректерді енгізу'!B16) -> МЕТРИКА 3 | C25: =IF($B25="",NA(),IFERROR(INDEX('Қаржылық деректерді енгізу'!$B$6:$I$30,$A25,C$6),NA())) -> 2187 | D25: =IF($B25="",NA(),IFERROR(INDEX('Қаржылық деректерді енгізу'!$B$6:$I$30,$A25,D$6),NA())) -> 2319 | E25: =IF($B25="",NA(),IFERROR(INDEX('Қаржылық деректерді енгізу'!$B$6:$I$30,$A25,E$6),NA())) -> 2467 | F25: =IF($B25="",NA(),IFERROR(INDEX('Қаржылық деректерді енгізу'!$B$6:$I$30,$A25,F$6),NA())) -> 2639 | G25: =IF($B25="",NA(),IFERROR(INDEX('Қаржылық деректерді енгізу'!$B$6:$I$30,$A25,G$6),NA())) -> 3108
A26: =ROWS($B$15:B26) -> 12 | B26: =IF('Қаржылық деректерді енгізу'!B17=0,"",'Қаржылық деректерді енгізу'!B17) -> МЕТРИКА 4 | C26: =IF($B26="",NA(),IFERROR(INDEX('Қаржылық деректерді енгізу'!$B$6:$I$30,$A26,C$6),NA())) -> 1259 | D26: =IF($B26="",NA(),IFERROR(INDEX('Қаржылық деректерді енгізу'!$B$6:$I$30,$A26,D$6),NA())) -> 1370 | E26: =IF($B26="",NA(),IFERROR(INDEX('Қаржылық деректерді енгізу'!$B$6:$I$30,$A26,E$6),NA())) -> 1376 | F26: =IF($B26="",NA(),IFERROR(INDEX('Қаржылық деректерді енгізу'!$B$6:$I$30,$A26,F$6),NA())) -> 1459 | G26: =IF($B26="",NA(),IFERROR(INDEX('Қаржылық деректерді енгізу'!$B$6:$I$30,$A26,G$6),NA())) -> 1492
A27: =ROWS($B$15:B27) -> 13 | B27: =IF('Қаржылық деректерді енгізу'!B18=0,"",'Қаржылық деректерді енгізу'!B18) -> МЕТРИКА 5 | C27: =IF($B27="",NA(),IFERROR(INDEX('Қаржылық деректерді енгізу'!$B$6:$I$30,$A27,C$6),NA())) -> 85 | D27: =IF($B27="",NA(),IFERROR(INDEX('Қаржылық деректерді енгізу'!$B$6:$I$30,$A27,D$6),NA())) -> 89 | E27: =IF($B27="",NA(),IFERROR(INDEX('Қаржылық деректерді енгізу'!$B$6:$I$30,$A27,E$6),NA())) -> 91 | F27: =IF($B27="",NA(),IFERROR(INDEX('Қаржылық деректерді енгізу'!$B$6:$I$30,$A27,F$6),NA())) -> 100 | G27: =IF($B27="",NA(),IFERROR(INDEX('Қаржылық деректерді енгізу'!$B$6:$I$30,$A27,G$6),NA())) -> 103
A28: =ROWS($B$15:B28) -> 14 | B28: =IF('Қаржылық деректерді енгізу'!B19=0,"",'Қаржылық деректерді енгізу'!B19) -> МЕТРИКА 6 | C28: =IF($B28="",NA(),IFERROR(INDEX('Қаржылық деректерді енгізу'!$B$6:$I$30,$A28,C$6),NA())) -> 27 | D28: =IF($B28="",NA(),IFERROR(INDEX('Қаржылық деректерді енгізу'!$B$6:$I$30,$A28,D$6),NA())) -> 28 | E28: =IF($B28="",NA(),IFERROR(INDEX('Қаржылық деректерді енгізу'!$B$6:$I$30,$A28,E$6),NA())) -> 29 | F28: =IF($B28="",NA(),IFERROR(INDEX('Қаржылық деректерді енгізу'!$B$6:$I$30,$A28,F$6),NA())) -> 30 | G28: =IF($B28="",NA(),IFERROR(INDEX('Қаржылық деректерді енгізу'!$B$6:$I$30,$A28,G$6),NA())) -> 34
A29: =ROWS($B$15:B29) -> 15 | B29: =IF('Қаржылық деректерді енгізу'!B20=0,"",'Қаржылық деректерді енгізу'!B20) ->  | C29: =IF(B29="",NA(),IFERROR(INDEX('Қаржылық деректерді енгізу'!$B$6:$I$30,$A29,C$6),NA())) ->  | D29: =IF(B29="",NA(),IFERROR(INDEX('Қаржылық деректерді енгізу'!$B$6:$I$30,$A29,D$6),NA())) ->  | E29: =IF(B29="",NA(),IFERROR(INDEX('Қаржылық деректерді енгізу'!$B$6:$I$30,$A29,E$6),NA())) ->  | F29: =IF(B29="",NA(),IFERROR(INDEX('Қаржылық деректерді енгізу'!$B$6:$I$30,$A29,F$6),NA())) ->  | G29: =IF(B29="",NA(),IFERROR(INDEX('Қаржылық деректерді енгізу'!$B$6:$I$30,$A29,G$6),NA())) -> 
A30: =ROWS($B$15:B30) -> 16 | B30: =IF('Қаржылық деректерді енгізу'!B21=0,"",'Қаржылық деректерді енгізу'!B21) ->  | C30: =IF(B30="",NA(),IFERROR(INDEX('Қаржылық деректерді енгізу'!$B$6:$I$30,$A30,C$6),NA())) ->  | D30: =IF(B30="",NA(),IFERROR(INDEX('Қаржылық деректерді енгізу'!$B$6:$I$30,$A30,D$6),NA())) ->  | E30: =IF(B30="",NA(),IFERROR(INDEX('Қаржылық деректерді енгізу'!$B$6:$I$30,$A30,E$6),NA())) ->  | F30: =IF(B30="",NA(),IFERROR(INDEX('Қаржылық деректерді енгізу'!$B$6:$I$30,$A30,F$6),NA())) ->  | G30: =IF(B30="",NA(),IFERROR(INDEX('Қаржылық деректерді енгізу'!$B$6:$I$30,$A30,G$6),NA())) -> 
A31: =ROWS($B$15:B31) -> 17 | B31: =IF('Қаржылық деректерді енгізу'!B22=0,"",'Қаржылық деректерді енгізу'!B22) ->  | C31: =IF(B31="",NA(),IFERROR(INDEX('Қаржылық деректерді енгізу'!$B$6:$I$30,$A31,C$6),NA())) ->  | D31: =IF(B31="",NA(),IFERROR(INDEX('Қаржылық деректерді енгізу'!$B$6:$I$30,$A31,D$6),NA())) ->  | E31: =IF(B31="",NA(),IFERROR(INDEX('Қаржылық деректерді енгізу'!$B$6:$I$30,$A31,E$6),NA())) ->  | F31: =IF(B31="",NA(),IFERROR(INDEX('Қаржылық деректерді енгізу'!$B$6:$I$30,$A31,F$6),NA())) ->  | G31: =IF(B31="",NA(),IFERROR(INDEX('Қаржылық деректерді енгізу'!$B$6:$I$30,$A31,G$6),NA())) -> 
A32: =ROWS($B$15:B32) -> 18 | B32: =IF('Қаржылық деректерді енгізу'!B23=0,"",'Қаржылық деректерді енгізу'!B23) ->  | C32: =IF(B32="",NA(),IFERROR(INDEX('Қаржылық деректерді енгізу'!$B$6:$I$30,$A32,C$6),NA())) ->  | D32: =IF(B32="",NA(),IFERROR(INDEX('Қаржылық деректерді енгізу'!$B$6:$I$30,$A32,D$6),NA())) ->  | E32: =IF(B32="",NA(),IFERROR(INDEX('Қаржылық деректерді енгізу'!$B$6:$I$30,$A32,E$6),NA())) ->  | F32: =IF(B32="",NA(),IFERROR(INDEX('Қаржылық деректерді енгізу'!$B$6:$I$30,$A32,F$6),NA())) ->  | G32: =IF(B32="",NA(),IFERROR(INDEX('Қаржылық деректерді енгізу'!$B$6:$I$30,$A32,G$6),NA())) -> 
A33: =ROWS($B$15:B33) -> 19 | B33: =IF('Қаржылық деректерді енгізу'!B24=0,"",'Қаржылық деректерді енгізу'!B24) ->  | C33: =IF(B33="",NA(),IFERROR(INDEX('Қаржылық деректерді енгізу'!$B$6:$I$30,$A33,C$6),NA())) ->  | D33: =IF(B33="",NA(),IFERROR(INDEX('Қаржылық деректерді енгізу'!$B$6:$I$30,$A33,D$6),NA())) ->  | E33: =IF(B33="",NA(),IFERROR(INDEX('Қаржылық деректерді енгізу'!$B$6:$I$30,$A33,E$6),NA())) ->  | F33: =IF(B33="",NA(),IFERROR(INDEX('Қаржылық деректерді енгізу'!$B$6:$I$30,$A33,F$6),NA())) ->  | G33: =IF(B33="",NA(),IFERROR(INDEX('Қаржылық деректерді енгізу'!$B$6:$I$30,$A33,G$6),NA())) -> 
A34: =ROWS($B$15:B34) -> 20 | B34: =IF('Қаржылық деректерді енгізу'!B25=0,"",'Қаржылық деректерді енгізу'!B25) ->  | C34: =IF(B34="",NA(),IFERROR(INDEX('Қаржылық деректерді енгізу'!$B$6:$I$30,$A34,C$6),NA())) ->  | D34: =IF(B34="",NA(),IFERROR(INDEX('Қаржылық деректерді енгізу'!$B$6:$I$30,$A34,D$6),NA())) ->  | E34: =IF(B34="",NA(),IFERROR(INDEX('Қаржылық деректерді енгізу'!$B$6:$I$30,$A34,E$6),NA())) ->  | F34: =IF(B34="",NA(),IFERROR(INDEX('Қаржылық деректерді енгізу'!$B$6:$I$30,$A34,F$6),NA())) ->  | G34: =IF(B34="",NA(),IFERROR(INDEX('Қаржылық деректерді енгізу'!$B$6:$I$30,$A34,G$6),NA())) -> 
A35: =ROWS($B$15:B35) -> 21 | B35: =IF('Қаржылық деректерді енгізу'!B26=0,"",'Қаржылық деректерді енгізу'!B26) ->  | C35: =IF(B35="",NA(),IFERROR(INDEX('Қаржылық деректерді енгізу'!$B$6:$I$30,$A35,C$6),NA())) ->  | D35: =IF(B35="",NA(),IFERROR(INDEX('Қаржылық деректерді енгізу'!$B$6:$I$30,$A35,D$6),NA())) ->  | E35: =IF(B35="",NA(),IFERROR(INDEX('Қаржылық деректерді енгізу'!$B$6:$I$30,$A35,E$6),NA())) ->  | F35: =IF(B35="",NA(),IFERROR(INDEX('Қаржылық деректерді енгізу'!$B$6:$I$30,$A35,F$6),NA())) ->  | G35: =IF(B35="",NA(),IFERROR(INDEX('Қаржылық деректерді енгізу'!$B$6:$I$30,$A35,G$6),NA())) -> 
A36: =ROWS($B$15:B36) -> 22 | B36: =IF('Қаржылық деректерді енгізу'!B27=0,"",'Қаржылық деректерді енгізу'!B27) ->  | C36: =IF(B36="",NA(),IFERROR(INDEX('Қаржылық деректерді енгізу'!$B$6:$I$30,$A36,C$6),NA())) ->  | D36: =IF(B36="",NA(),IFERROR(INDEX('Қаржылық деректерді енгізу'!$B$6:$I$30,$A36,D$6),NA())) ->  | E36: =IF(B36="",NA(),IFERROR(INDEX('Қаржылық деректерді енгізу'!$B$6:$I$30,$A36,E$6),NA())) ->  | F36: =IF(B36="",NA(),IFERROR(INDEX('Қаржылық деректерді енгізу'!$B$6:$I$30,$A36,F$6),NA())) ->  | G36: =IF(B36="",NA(),IFERROR(INDEX('Қаржылық деректерді енгізу'!$B$6:$I$30,$A36,G$6),NA())) -> 
A37: =ROWS($B$15:B37) -> 23 | B37: =IF('Қаржылық деректерді енгізу'!B28=0,"",'Қаржылық деректерді енгізу'!B28) ->  | C37: =IF(B37="",NA(),IFERROR(INDEX('Қаржылық деректерді енгізу'!$B$6:$I$30,$A37,C$6),NA())) ->  | D37: =IF(B37="",NA(),IFERROR(INDEX('Қаржылық деректерді енгізу'!$B$6:$I$30,$A37,D$6),NA())) ->  | E37: =IF(B37="",NA(),IFERROR(INDEX('Қаржылық деректерді енгізу'!$B$6:$I$30,$A37,E$6),NA())) ->  | F37: =IF(B37="",NA(),IFERROR(INDEX('Қаржылық деректерді енгізу'!$B$6:$I$30,$A37,F$6),NA())) ->  | G37: =IF(B37="",NA(),IFERROR(INDEX('Қаржылық деректерді енгізу'!$B$6:$I$30,$A37,G$6),NA())) -> 
A38: =ROWS($B$15:B38) -> 24 | B38: =IF('Қаржылық деректерді енгізу'!B29=0,"",'Қаржылық деректерді енгізу'!B29) ->  | C38: =IF(B38="",NA(),IFERROR(INDEX('Қаржылық деректерді енгізу'!$B$6:$I$30,$A38,C$6),NA())) ->  | D38: =IF(B38="",NA(),IFERROR(INDEX('Қаржылық деректерді енгізу'!$B$6:$I$30,$A38,D$6),NA())) ->  | E38: =IF(B38="",NA(),IFERROR(INDEX('Қаржылық деректерді енгізу'!$B$6:$I$30,$A38,E$6),NA())) ->  | F38: =IF(B38="",NA(),IFERROR(INDEX('Қаржылық деректерді енгізу'!$B$6:$I$30,$A38,F$6),NA())) ->  | G38: =IF(B38="",NA(),IFERROR(INDEX('Қаржылық деректерді енгізу'!$B$6:$I$30,$A38,G$6),NA())) -> 
A39: =ROWS($B$15:B39) -> 25 | B39: =IF('Қаржылық деректерді енгізу'!B30=0,"",'Қаржылық деректерді енгізу'!B30) ->  | C39: =IF(B39="",NA(),IFERROR(INDEX('Қаржылық деректерді енгізу'!$B$6:$I$30,$A39,C$6),NA())) ->  | D39: =IF(B39="",NA(),IFERROR(INDEX('Қаржылық деректерді енгізу'!$B$6:$I$30,$A39,D$6),NA())) ->  | E39: =IF(B39="",NA(),IFERROR(INDEX('Қаржылық деректерді енгізу'!$B$6:$I$30,$A39,E$6),NA())) ->  | F39: =IF(B39="",NA(),IFERROR(INDEX('Қаржылық деректерді енгізу'!$B$6:$I$30,$A39,F$6),NA())) ->  | G39: =IF(B39="",NA(),IFERROR(INDEX('Қаржылық деректерді енгізу'!$B$6:$I$30,$A39,G$6),NA())) -> 
